bitfinex/quotes_ETHUSD_20241119
["timestamp","ask_amount","ask_price","bid_price","bid_amount"]
[1732050461986,1.5585,3083.2,3083.1,0.97304]
[1732050462433,1.5585,3083.2,3083.0,0.97306]
[1732050462673,1.5585,3083.2,3082.9,0.9731]
[1732050462791,1.5585,3083.2,3082.9,0.97308]
[1732050463105,1.5585,3083.2,3083.0,0.97305]
[1732050463305,1.5585,3083.2,3083.1,0.97304]
[1732050463935,0.01,3083.2,3083.1,0.97304]
[1732050464103,0.01,3083.4,3083.3,0.97298]
[1732050464308,1.5746,3083.6,3083.5,0.97292]
[1732050464488,1.5846,3083.6,3083.5,0.97292]
[1732050464688,0.01,3083.6,3083.5,0.97292]
[1732050465433,0.02,3084.1,3083.9,0.97279]
[1732050465665,0.02,3084.3,3084.2,0.97269]
[1732050466149,1.5646,3084.4,3084.2,0.97269]
[1732050466150,1.5646,3084.4,3084.3,0.97266]
[1732050466297,0.01,3084.7,3084.6,0.97257]
[1732050468117,0.02197158,3085.1,3084.4,0.9726]
[1732050468118,0.01,3085.1,3085.0,0.97244]
[1732050469102,0.01,3085.1,3084.4,0.97263]
[1732050469103,0.03197158,3085.1,3084.4,0.97263]
[1732050469373,0.01,3084.1,3083.3,0.97298]
[1732050469591,0.01,3084.1,3083.8,0.97279]
[1732050470341,0.01,3084.1,3083.6,0.97287]
[1732050470678,0.01,3083.9,3083.5,0.9729]
[1732050470833,0.01,3083.9,3083.6,0.97288]
[1732050471034,0.01,3083.9,3083.5,0.9729]
[1732050471584,0.01,3083.9,3083.7,0.97285]
[1732050472072,0.01,3084.1,3083.1,3.0]
[1732050472282,0.01,3084.3,3084.0,1.94552]
[1732050472482,1.6681,3084.4,3084.2,0.97267]
[1732050472890,1.6581,3084.4,3084.3,0.97266]
[1732050473040,0.01,3084.6,3084.5,0.9726]
[1732050473737,1.5969,3084.8,3084.5,0.9726]
[1732050473738,1.5969,3084.8,3084.6,0.97257]
[1732050473935,0.01,3084.7,3083.8,0.7712]
[1732050474240,0.01,3084.7,3084.1,0.64846]
[1732050474662,0.01,3084.7,3084.2,0.64844]
[1732050475062,0.01,3084.4,3084.0,0.6485]
[1732050475275,0.02197158,3084.8,3083.8,0.64853]
[1732050475276,0.01,3084.2,3083.8,0.64853]
[1732050476075,0.01,3084.2,3083.6,0.64858]
[1732050476299,0.03197158,3084.2,3083.5,0.6486]
[1732050476440,0.03197158,3084.2,3083.2,0.7712]
[1732050476668,0.03197158,3084.2,3083.5,0.6486]
[1732050476974,0.01,3083.8,3083.4,0.64862]
[1732050477395,1.6532,3083.7,3083.1,0.64869]
[1732050477602,1.6532,3083.7,3082.2,0.181614]
[1732050477603,0.01,3083.1,3082.4,0.64882]
[1732050477917,0.01,3083.1,3082.2,0.171614]
[1732050477918,0.01,3083.1,3082.8,0.64876]
[1732050478229,0.01,3083.1,3082.6,0.64878]
[1732050478437,0.01,3083.0,3081.8,0.7712]
[1732050478576,0.01,3083.0,3082.4,0.64883]
[1732050479087,0.01,3083.0,3082.5,0.64881]
[1732050479511,4.76738,3083.4,3081.9,3.64894]
[1732050479512,0.01,3083.2,3082.8,0.64875]
[1732050480074,0.01,3083.2,3082.9,0.64873]
[1732050480833,1.5242,3083.4,3083.1,0.64869]
[1732050480994,1.5242,3083.4,3083.2,0.64866]
[1732050481333,1.5242,3083.4,3083.1,0.64868]
[1732050481556,0.01,3083.5,3082.8,1.29752]
[1732050481728,1.5242,3083.7,3083.6,0.64859]
[1732050482035,0.01,3083.8,3083.5,0.64861]
[1732050482323,0.01,3083.8,3083.4,0.64863]
[1732050482324,0.01,3083.8,3083.6,0.64857]
[1732050482826,0.01,3083.8,3083.4,0.64862]
[1732050483013,0.01,3083.8,3083.5,0.6486]
[1732050483219,0.01,3083.8,3083.4,0.64862]
[1732050483428,0.01,3083.8,3083.6,0.64857]
[1732050483729,0.03197158,3084.0,3083.6,0.64857]
[1732050484066,0.01,3084.0,3083.8,1.29707]
[1732050484229,0.01,3084.0,3083.8,1.29706]
[1732050484395,0.01,3084.0,3083.8,0.64853]
[1732050484796,1.5242,3084.1,3083.8,0.64853]
[1732050485025,0.01,3084.0,3083.9,0.64852]
[1732050485334,0.01,3084.4,3084.2,0.64846]
[1732050485542,0.01,3084.4,3084.3,0.64844]
[1732050485891,1.5441,3084.6,3084.5,0.6484]
[1732050486089,1.30353653,3085.2,3084.5,0.6484]
[1732050486090,0.01,3084.8,3084.5,0.6484]
[1732050486633,0.01,3084.8,3084.6,0.64836]
[1732050486991,0.01,3084.8,3084.5,0.64838]
[1732050487291,0.01,3084.8,3084.7,0.64836]
[1732050487487,0.01,3084.8,3084.3,0.64843]
[1732050487728,0.01,3084.8,3084.4,0.64841]
[1732050487964,1.6044,3085.0,3084.7,0.64834]
[1732050488170,1.6044,3085.0,3084.8,0.64833]
[1732050488331,1.6044,3085.0,3084.7,0.64834]
[1732050488537,0.01,3084.8,3084.2,0.64844]
[1732050488734,3.25171,3084.8,3084.2,0.64844]
[1732050488950,3.25171,3084.8,3084.3,0.64843]
[1732050488951,0.01,3084.8,3084.3,0.64843]
[1732050489148,0.01,3084.8,3084.4,0.64842]
[1732050489323,0.01,3084.1,3084.0,0.64849]
[1732050489661,0.02197158,3084.7,3084.2,0.64845]
[1732050489662,0.01,3084.4,3084.2,0.64845]
[1732050489879,0.01,3084.4,3083.2,0.64866]
[1732050489880,0.01,3084.1,3083.7,0.64857]
[1732050490165,0.01,3084.1,3083.6,0.64857]
[1732050490524,0.01,3084.1,3083.9,0.64851]
[1732050490730,0.01,3084.1,3084.0,0.6485]
[1732050491151,4.56714811,3084.9,3083.9,0.7712]
[1732050491152,0.01,3084.4,3083.9,0.7712]
[1732050491429,0.01,3084.1,3083.7,0.64856]
[1732050491663,1.5864,3084.1,3083.5,0.64859]
[1732050491828,1.5764,3084.1,3083.5,0.64859]
[1732050492028,0.01,3084.3,3083.8,0.64853]
[1732050493371,0.01,3084.3,3083.6,0.64857]
[1732050493730,0.01,3084.3,3083.9,0.64852]
[1732050493928,0.01,3084.3,3084.0,0.6485]
[1732050494379,0.01,3084.2,3083.9,0.64851]
[1732050494582,0.01,3083.7,3082.6,0.7712]
[1732050494879,1.5764,3084.5,3082.6,0.7712]
[1732050494880,1.557,3083.9,3083.4,0.64861]
[1732050495176,1.557,3083.9,3082.2,0.64887]
[1732050495177,0.01,3083.6,3082.0,0.7812]
[1732050495405,0.01,3083.4,3083.1,0.64869]
[1732050495695,1.5292,3083.0,3082.0,1.37012]
[1732050495845,0.01,3082.7,3082.3,0.64886]
[1732050496292,0.01,3082.7,3082.3,0.64885]
[1732050497351,0.01,3082.7,3082.4,0.64884]
[1732050497981,0.01,3082.7,3082.4,0.64883]
[1732050498183,1.5392,3083.0,3082.5,0.64881]
[1732050498358,0.01,3082.6,3082.1,0.6489]
[1732050498560,0.01,3082.5,3082.1,0.6489]
[1732050498759,0.01,3082.7,3082.3,0.64886]
[1732050498963,0.01,3082.9,3082.5,0.64881]
[1732050499155,0.01,3082.9,3082.7,0.64877]
[1732050499352,0.01,3082.9,3082.5,1.29762]
[1732050499556,0.01,3082.9,3082.0,3.7212]
[1732050499557,0.01,3082.7,3082.3,0.64885]
[1732050499894,0.01,3082.7,3082.4,0.64884]
[1732050500095,0.01,3082.7,3082.3,0.64885]
[1732050500245,0.01,3082.1,3081.5,0.64902]
[1732050500590,0.01,3081.9,3081.7,0.64897]
[1732050500806,4.77551,3082.6,3081.9,0.64894]
[1732050500807,0.01,3082.1,3081.9,0.64894]
[1732050501091,0.01,3082.5,3082.2,0.64888]
[1732050501386,0.01,3082.5,3082.3,0.64886]
[1732050501799,1.5315,3082.6,3082.5,0.64882]
[1732050502004,1.5415,3082.6,3082.5,0.64882]
[1732050502763,1.5415,3082.6,3082.1,0.64889]
[1732050502964,1.5415,3082.6,3082.3,0.64885]
[1732050503279,1.5415,3082.6,3082.3,0.64886]
[1732050503473,1.5415,3082.6,3082.4,0.64884]
[1732050504096,1.5315,3082.6,3082.5,0.64882]
[1732050504299,0.01,3082.8,3082.6,0.64879]
[1732050504509,0.01,3082.8,3082.7,0.64878]
[1732050504802,5.1983048,3083.6,3082.7,0.64878]
[1732050504803,0.01,3083.0,3082.7,0.64878]
[1732050505187,1.6021,3083.3,3082.9,0.64873]
[1732050505188,0.01,3083.2,3082.9,0.64873]
[1732050505391,1.32550811,3083.6,3082.4,0.64882]
[1732050505392,0.01,3083.4,3083.3,0.64865]
[1732050505592,0.01,3083.6,3083.5,0.64861]
[1732050505798,2.95933653,3084.1,3083.6,0.64859]
[1732050506105,0.01,3084.3,3084.0,0.6485]
[1732050506263,0.01,3084.3,3084.2,0.64846]
[1732050506778,0.01,3084.8,3084.5,0.64838]
[1732050507093,1.30353653,3085.2,3083.7,0.64856]
[1732050507094,0.01,3085.0,3084.9,0.64831]
[1732050507387,0.02197158,3085.2,3084.9,0.64831]
[1732050507388,0.03197158,3085.2,3085.1,0.64827]
[1732050507680,1.6555,3085.5,3085.4,0.64821]
[1732050507886,0.01,3085.7,3085.4,0.64821]
[1732050508039,0.01,3085.7,3085.6,0.64817]
[1732050509338,1.6555,3085.9,3085.6,0.64817]
[1732050509539,0.01,3085.9,3085.8,0.64813]
[1732050509764,0.01,3086.1,3086.0,0.64808]
[1732050509977,1.6191,3086.2,3086.1,0.64806]
[1732050510191,0.02197158,3086.6,3086.2,0.64804]
[1732050510192,0.01,3086.5,3086.2,0.64804]
[1732050510378,1.6288,3086.6,3086.5,0.64798]
[1732050510582,1.31921156,3087.3,3086.7,0.64792]
[1732050510583,0.01,3086.9,3086.7,0.64792]
[1732050510798,0.01,3086.9,3086.8,0.64792]
[1732050511221,1.6288,3087.0,3086.6,0.64796]
[1732050511495,1.6288,3087.0,3086.1,0.64805]
[1732050511496,0.01,3086.3,3086.1,0.64805]
[1732050511718,0.01,3086.3,3085.9,0.6481]
[1732050511857,0.03197158,3086.7,3086.3,0.648]
[1732050512054,0.16388,3086.8,3086.5,0.64796]
[1732050512276,0.01,3086.9,3086.8,0.64792]
[1732050512466,0.02197158,3087.4,3086.8,0.64792]
[1732050512467,0.01,3087.1,3086.9,0.64789]
[1732050512668,0.01,3087.9,3086.4,3.01]
[1732050513015,0.43289624,3088.1,3086.4,3.01]
[1732050513016,0.01,3088.1,3086.6,0.64796]
[1732050513167,0.01,3088.1,3087.9,0.64768]
[1732050513362,0.01,3088.3,3087.9,0.64768]
[1732050513565,0.01,3088.3,3088.0,0.64766]
[1732050513764,0.01,3087.9,3086.9,3.0]
[1732050514062,0.01,3087.2,3086.6,0.64795]
[1732050514309,0.324908,3087.1,3086.3,0.7212]
[1732050514506,0.03197158,3087.2,3086.8,0.64791]
[1732050514708,0.01,3087.2,3086.8,0.64791]
[1732050515243,0.01,3086.6,3085.9,0.6481]
[1732050515530,1.5279,3086.8,3085.9,0.6481]
[1732050515531,0.01,3086.3,3085.9,0.6481]
[1732050516602,0.01,3086.6,3086.2,0.64802]
[1732050516810,0.01,3086.6,3085.5,0.64818]
[1732050517011,0.01,3086.6,3085.4,0.7212]
[1732050517230,1.5379,3086.8,3086.6,0.64796]
[1732050517556,0.01,3087.0,3086.6,0.64796]
[1732050517705,1.6644,3087.2,3086.8,0.6479]
[1732050518078,0.01,3087.3,3087.0,0.64786]
[1732050518220,0.01,3087.3,3087.0,0.64787]
[1732050518407,0.01,3087.3,3086.8,0.6479]
[1732050519033,0.01,3087.1,3086.6,0.64795]
[1732050519364,0.01,3086.9,3086.3,0.648]
[1732050519553,0.01,3086.7,3086.4,0.648]
[1732050520037,0.01,3086.7,3086.2,0.64803]
[1732050520241,0.01,3086.7,3086.0,0.64808]
[1732050520242,3.27175158,3086.7,3086.0,0.64808]
[1732050520442,0.01,3086.3,3085.7,0.64813]
[1732050520628,0.01,3086.3,3085.8,0.64811]
[1732050520802,0.01,3086.1,3085.5,1.36937]
[1732050521038,1.5818,3086.0,3085.6,0.64815]
[1732050521244,0.01,3086.2,3085.8,0.64811]
[1732050521405,0.01,3086.0,3085.6,0.64815]
[1732050521600,0.01,3086.2,3085.8,0.64812]
[1732050521829,0.01,3086.2,3085.8,0.64811]
[1732050523642,0.01,3086.2,3085.7,0.64814]
[1732050523858,0.01,3086.2,3085.1,0.64825]
[1732050523859,0.01,3086.1,3085.1,0.202778]
[1732050524003,0.01,3086.1,3085.8,0.64811]
[1732050524442,0.01,3086.3,3085.3,1.29646]
[1732050524643,0.01,3086.3,3085.1,0.64827]
[1732050524917,1.5718,3086.4,3086.2,0.64804]
[1732050525118,0.01,3086.3,3086.0,0.64806]
[1732050525620,1.5718,3086.4,3086.0,0.64806]
[1732050525809,1.5718,3086.4,3086.1,0.64805]
[1732050526004,0.01,3086.3,3086.1,0.64805]
[1732050526313,1.5718,3086.4,3085.5,0.64818]
[1732050526314,1.60377158,3086.4,3085.5,0.64817]
[1732050526512,0.01,3086.1,3085.8,0.64812]
[1732050526725,0.01,3086.3,3086.0,0.64808]
[1732050526950,1.5718,3086.4,3086.1,0.64806]
[1732050527161,1.5718,3086.4,3086.0,0.64808]
[1732050527366,0.01,3086.5,3085.7,0.7212]
[1732050527656,0.01,3086.5,3086.3,0.64801]
[1732050527970,1.5329,3086.8,3086.6,0.64795]
[1732050528113,1.5329,3086.8,3086.7,0.64794]
[1732050528314,0.01,3087.0,3086.7,0.64794]
[1732050528527,0.01,3087.0,3086.8,0.6479]
[1732050528837,0.01,3087.0,3086.7,0.64794]
[1732050529022,0.01,3087.0,3086.6,0.64794]
[1732050529238,0.01,3087.0,3086.8,0.64791]
[1732050529627,0.01,3087.0,3086.6,0.64794]
[1732050529628,0.01,3087.0,3086.6,1.29588]
[1732050529829,0.01,3087.0,3086.6,0.64794]
[1732050530141,1.5139,3088.0,3087.4,0.64777]
[1732050530346,4.75233,3088.0,3087.4,0.64777]
[1732050530588,3.23846,3087.9,3087.3,0.64781]
[1732050530882,3.23846,3087.9,3087.2,0.64782]
[1732050531036,3.23866,3087.7,3086.8,0.02260114]
[1732050531238,3.23866,3087.7,3086.8,1.29581]
[1732050531473,6.4774,3087.7,3086.8,0.6479]
[1732050531638,6.4774,3087.7,3086.6,1.29589]
[1732050531639,3.23887,3087.5,3086.6,1.29589]
[1732050531839,3.2391,3087.3,3086.7,0.64793]
[1732050532277,1.6083,3087.2,3086.4,0.67059821]
[1732050532432,1.6083,3087.2,3085.9,0.6481]
[1732050532433,3.23935,3087.1,3086.2,0.64803]
[1732050532775,3.23953,3086.9,3086.2,0.64802]
[1732050532989,0.01,3088.0,3085.9,0.7212]
[1732050532990,1.6083,3087.6,3086.7,0.64793]
[1732050533281,3.23924,3087.2,3086.5,0.64796]
[1732050533578,3.23931,3087.1,3086.5,0.64796]
[1732050533937,3.2391,3087.3,3086.7,0.64793]
[1732050534141,3.23918,3087.2,3086.5,1.29593]
[1732050534477,3.23918,3087.2,3085.9,0.7212]
[1732050534478,3.23978,3086.7,3085.9,0.7212]
[1732050534648,1.6083,3086.8,3085.9,0.7212]
[1732050534844,1.6083,3086.8,3086.2,0.64803]
[1732050535049,4.84797,3086.8,3086.2,0.64803]
[1732050535258,3.23976,3086.7,3086.1,0.64806]
[1732050535459,3.23987,3086.6,3086.0,0.64808]
[1732050535634,3.23987,3086.6,3086.0,1.29615]
[1732050535836,3.23987,3086.6,3086.0,0.64807]
[1732050536038,4.84794,3086.8,3086.0,0.64807]
[1732050536286,4.84796,3086.8,3086.0,0.64808]
[1732050536573,4.84796,3086.8,3086.2,0.64803]
[1732050537589,4.84796,3086.8,3086.2,1.29606]
[1732050538240,4.84796,3086.8,3086.2,0.64803]
[1732050538882,4.84796,3086.8,3086.2,0.64802]
[1732050539880,3.23939,3087.0,3086.2,0.64802]
[1732050539881,3.2395,3086.9,3086.2,0.64802]
[1732050540087,3.23924,3087.2,3085.9,0.7212]
[1732050540242,4.85271,3087.3,3086.0,0.64808]
[1732050540441,0.2957141,3087.2,3086.9,0.64788]
[1732050540752,3.23884,3087.6,3087.0,0.64785]
[1732050540952,0.29574003,3087.5,3087.2,0.64782]
[1732050541176,1.5057,3087.7,3087.2,1.29564]
[1732050541480,1.5057,3087.7,3087.2,0.64782]
[1732050541661,3.23837,3088.0,3087.5,0.64777]
[1732050541876,1.5456,3088.2,3086.7,0.7212]
[1732050542056,3.23913,3087.3,3086.7,1.36912]
[1732050542240,3.23913,3087.3,3086.7,2.01704]
[1732050542446,1.5456,3087.4,3086.7,1.570824]
[1732050542677,4.7846,3087.4,3086.9,0.64789]
[1732050542877,1.5456,3087.4,3086.8,0.6479]
[1732050543179,1.5456,3087.4,3086.7,0.922904]
[1732050543491,1.5456,3087.4,3086.5,0.64798]
[1732050543635,3.23925,3087.2,3086.5,0.64798]
[1732050543841,1.5456,3087.4,3086.6,0.64794]
[1732050543842,3.23914,3087.3,3086.6,0.64794]
[1732050544041,3.23919,3087.2,3086.6,0.64794]
[1732050544284,1.5456,3087.4,3087.0,0.64785]
[1732050544528,3.23878,3087.6,3087.0,0.64785]
[1732050544730,6.47763,3087.6,3086.9,0.64788]
[1732050545027,3.23887,3087.5,3086.9,0.64788]
[1732050545534,3.23887,3087.5,3087.0,0.64787]
[1732050546927,0.647758,3087.5,3086.4,0.7212]
[1732050547130,0.55,3087.8,3086.6,0.64794]
[1732050547131,0.29595882,3087.4,3086.6,0.64794]
[1732050547316,0.29595882,3087.3,3086.8,0.6479]
[1732050547491,3.23896,3087.5,3086.9,0.64789]
[1732050547690,3.23914,3087.3,3086.6,0.64794]
[1732050547927,3.23914,3087.3,3086.4,0.7212]
[1732050547928,3.23951,3086.9,3086.4,1.36919]
[1732050548257,3.23931,3087.1,3086.6,0.64794]
[1732050548408,3.23925,3087.2,3086.4,1.36919]
[1732050548409,3.23925,3087.2,3086.4,0.7212]
[1732050548613,3.2396,3086.8,3086.4,0.7212]
[1732050548814,3.23966,3086.8,3086.4,0.7212]
[1732050549050,1.5674,3087.2,3086.1,0.64805]
[1732050549051,4.80659,3087.2,3086.1,0.7212]
[1732050549268,3.23902,3087.4,3086.8,0.6479]
[1732050549428,4.80619,3087.6,3086.8,0.6479]
[1732050549429,3.23879,3087.6,3087.0,0.64786]
[1732050549626,3.23857,3087.8,3087.2,0.64782]
[1732050550223,4.80578,3088.0,3086.9,0.64789]
[1732050550438,3.23783,3088.5,3087.8,0.64769]
[1732050550439,3.23782,3088.5,3087.8,0.64769]
[1732050550755,1.5674,3088.6,3087.8,0.64769]
[1732050550756,0.29599694,3088.4,3087.8,0.64769]
[1732050550951,1.5674,3088.6,3087.8,0.64769]
[1732050551114,3.23799,3088.4,3087.8,0.64769]
[1732050551313,0.29602657,3088.5,3087.8,0.64769]
[1732050551314,4.80517,3088.6,3087.8,0.64769]
[1732050551631,0.29590297,3088.5,3087.8,0.64769]
[1732050551830,3.23779,3088.6,3088.0,0.64766]
[1732050552038,3.23766,3088.7,3088.1,0.64763]
[1732050552740,1.5674,3088.3,3087.4,0.7212]
[1732050553361,3.03309085,3088.2,3087.4,1.36898]
[1732050553654,1.39018051,3088.1,3087.4,1.36898]
[1732050553972,3.23819,3088.2,3087.4,1.36898]
[1732050554146,0.29583352,3088.1,3087.4,0.7212]
[1732050554316,3.23821,3088.2,3087.4,0.7212]
[1732050554516,0.55,3088.4,3087.4,0.7212]
[1732050554517,0.29592261,3088.1,3087.4,0.7212]
[1732050554716,0.55,3088.4,3087.4,0.7212]
[1732050554717,3.23842,3088.0,3087.4,0.7212]
[1732050555013,0.25288173,3088.3,3087.1,0.64785]
[1732050555014,0.25288173,3088.3,3087.1,1.36905]
[1732050555213,3.23866,3087.7,3087.1,1.36905]
[1732050555420,3.23849,3087.9,3087.1,1.36904]
[1732050555667,3.23882,3087.6,3087.1,0.7212]
[1732050555865,3.23872,3087.7,3087.1,1.36904]
[1732050556171,3.23865,3087.7,3087.2,0.64782]
[1732050556336,3.23849,3087.9,3087.2,1.29564]
[1732050556541,3.23863,3087.8,3087.2,0.64782]
[1732050556877,3.23849,3087.9,3087.2,0.64781]
[1732050557167,3.23849,3087.9,3087.3,0.64779]
[1732050557545,3.23849,3087.9,3087.4,0.64779]
[1732050558056,4.90098,3088.3,3087.4,0.64778]
[1732050558263,3.23808,3088.3,3087.6,0.64773]
[1732050558594,3.2382,3088.2,3087.5,0.64776]
[1732050558729,3.23862,3087.8,3087.1,0.7212]
[1732050558930,0.647628,3088.2,3087.1,0.7212]
[1732050558931,3.23836,3088.0,3087.4,0.64778]
[1732050559162,5.63842313,3088.6,3087.4,0.64778]
[1732050559163,4.61724047,3088.6,3087.6,0.01]
[1732050559490,3.23667,3089.6,3088.9,0.7212]
[1732050559640,3.23667,3089.6,3088.9,1.36867]
[1732050559864,3.2365,3089.8,3089.0,0.64745]
[1732050560164,1.5863,3089.9,3089.2,0.64739]
[1732050560370,3.23606,3090.2,3088.9,0.7212]
[1732050560371,3.23606,3090.2,3088.9,1.40855753]
[1732050560524,3.23606,3090.2,3089.4,1.2947]
[1732050560950,3.23567,3090.6,3089.8,0.64727]
[1732050561175,3.23567,3090.6,3089.6,0.7212]
[1732050561353,3.23569,3090.6,3089.9,0.64726]
[1732050561532,3.23551,3090.7,3090.0,0.64724]
[1732050561723,3.7534417,3090.7,3090.0,0.64724]
[1732050561931,1.6193,3091.1,3090.2,0.6472]
[1732050562252,1.6193,3091.1,3089.7,0.64729]
[1732050562253,3.23552,3090.7,3090.3,0.7212]
[1732050562639,3.23543,3090.8,3089.9,0.7212]
[1732050562850,3.23547,3090.8,3089.9,0.7212]
[1732050563030,3.23507,3091.2,3090.3,0.64717]
[1732050563251,3.23522,3091.0,3090.2,0.6472]
[1732050563601,0.323522,3091.0,3089.9,0.7212]
[1732050563753,4.80426,3090.9,3089.9,1.36846]
[1732050564085,3.23561,3090.7,3089.9,1.36846]
[1732050564253,4.80424,3090.9,3090.2,0.6472]
[1732050564453,3.23518,3091.1,3090.3,0.64717]
[1732050564717,4.80952,3091.3,3090.6,0.6471]
[1732050564851,5.290472,3091.3,3090.6,0.6471]
[1732050565213,3.23499,3091.2,3090.6,0.6471]
[1732050565350,0.480952,3091.3,3090.7,0.04209287]
[1732050565553,0.324466,3091.4,3090.6,1.3683]
[1732050565554,3.559316,3091.4,3090.6,1.3683]
[1732050565851,3.23485,3091.4,3090.6,1.3683]
[1732050566248,3.2346,3091.6,3090.8,0.64707]
[1732050566492,3.2346,3091.6,3091.0,0.64703]
[1732050566801,0.4796,3091.5,3091.1,0.64701]
[1732050567005,1.5614,3091.7,3091.1,0.64701]
[1732050567953,4.79587,3091.7,3091.1,0.64701]
[1732050568156,1.5614,3091.7,3091.2,0.64697]
[1732050568456,0.479567,3091.7,3091.2,0.64697]
[1732050568793,0.479567,3091.7,3091.1,0.64701]
[1732050569110,3.23468,3091.5,3090.9,0.64705]
[1732050569478,3.23468,3091.5,3090.7,0.64708]
[1732050569693,7.86199,3092.1,3090.6,0.7212]
[1732050569694,3.23507,3091.2,3090.6,0.7212]
[1732050569896,3.558607,3091.1,3090.6,0.7212]
[1732050570050,3.23492,3091.3,3090.6,1.36831]
[1732050570371,3.2348,3091.4,3090.7,0.64708]
[1732050570987,3.23509,3091.1,3090.2,0.7212]
[1732050571152,3.23548,3090.8,3090.2,0.7212]
[1732050572181,3.23519,3091.0,3090.4,0.64716]
[1732050572356,3.23519,3091.0,3090.2,0.7212]
[1732050572357,3.2354,3090.8,3090.2,0.7212]
[1732050572552,3.23552,3090.7,3090.2,0.7212]
[1732050572773,3.23575,3090.5,3090.2,0.7212]
[1732050573156,3.23553,3090.7,3090.2,0.7212]
[1732050573398,3.23562,3090.6,3090.2,0.7212]
[1732050573601,3.23562,3090.6,3089.9,0.7212]
[1732050573806,3.23589,3090.4,3089.9,0.7212]
[1732050574258,3.23594,3090.3,3089.9,0.7212]
[1732050574454,3.78535,3090.9,3089.9,0.7212]
[1732050574811,3.23611,3090.2,3089.9,0.7212]
[1732050575295,3.23593,3090.3,3089.9,0.7212]
[1732050575458,3.23613,3090.2,3089.9,0.7212]
[1732050575654,3.559447,3090.4,3089.9,0.7212]
[1732050575655,6.795357,3090.4,3089.9,0.7212]
[1732050575896,3.23605,3090.2,3089.9,0.7212]
[1732050576108,3.23615,3090.1,3089.9,0.7212]
[1732050576399,3.23605,3090.2,3089.9,0.7212]
[1732050576605,3.23594,3090.3,3089.9,0.7212]
[1732050577103,3.23594,3090.3,3089.7,0.64729]
[1732050577104,3.23666,3089.6,3089.0,0.7212]
[1732050577302,0.55,3089.7,3089.1,0.64743]
[1732050577460,3.78657,3089.7,3089.1,0.64743]
[1732050577895,3.23667,3089.6,3089.0,0.7212]
[1732050578076,3.23677,3089.5,3089.0,0.7212]
[1732050578399,3.23678,3089.5,3089.0,0.7212]
[1732050578569,3.23693,3089.4,3089.0,0.7212]
[1732050578960,3.23705,3089.3,3089.0,0.7212]
[1732050579202,3.23718,3089.1,3088.7,0.7212]
[1732050579707,3.23731,3089.0,3088.7,0.7212]
[1732050579876,3.78716,3089.2,3088.7,0.7212]
[1732050580522,3.23664,3089.7,3088.7,0.76356974]
[1732050580796,3.2369,3089.4,3088.8,0.64748]
[1732050581006,3.23678,3089.5,3088.7,0.7212]
[1732050581007,3.23684,3089.5,3088.9,0.64747]
[1732050581499,3.7866,3089.7,3089.0,0.64745]
[1732050581689,3.7866,3089.7,3089.1,0.64743]
[1732050582052,3.7866,3089.7,3088.9,0.64747]
[1732050582053,3.7866,3089.7,3088.9,0.64746]
[1732050582204,3.23678,3089.5,3088.9,0.64746]
[1732050582371,3.23687,3089.4,3088.7,1.3687]
[1732050583312,3.23687,3089.4,3088.7,0.7212]
[1732050583811,3.23725,3089.1,3088.7,0.7212]
[1732050583973,3.2374,3088.9,3088.7,0.7212]
[1732050584176,3.23725,3089.1,3088.7,0.7212]
[1732050584371,3.2373,3089.0,3088.7,0.7212]
[1732050584911,3.23679,3089.5,3088.7,0.7212]
[1732050585196,0.55,3089.7,3088.7,0.7212]
[1732050585197,3.23714,3089.2,3088.7,0.7212]
[1732050585604,3.23719,3089.1,3088.7,0.7212]
[1732050586511,3.78705,3089.3,3088.7,0.7212]
[1732050586921,3.23712,3089.2,3088.7,0.7212]
[1732050587278,3.2373,3089.0,3088.7,0.7212]
[1732050587522,3.23741,3088.9,3088.7,0.7212]
[1732050587722,3.2373,3089.0,3088.7,0.7212]
[1732050588320,3.23742,3088.9,3088.7,0.7212]
[1732050588490,3.2373,3089.0,3088.7,0.7212]
[1732050589028,3.2375,3088.8,3088.7,0.7212]
[1732050590021,3.2375,3088.8,3088.4,0.7212]
[1732050590678,3.2373,3089.0,3088.4,0.7212]
[1732050590882,3.23741,3088.9,3088.4,0.7212]
[1732050591186,3.23752,3088.8,3088.4,0.7212]
[1732050592528,3.23731,3089.0,3088.4,0.7212]
[1732050592711,6.47468,3089.0,3088.4,0.7212]
[1732050592923,3.23731,3089.0,3088.4,0.7212]
[1732050593312,3.23695,3089.4,3088.5,0.69241456]
[1732050593511,3.0,3089.3,3088.4,0.76605456]
[1732050593742,3.23714,3089.2,3088.5,0.85368246]
[1732050594049,3.23701,3089.3,3088.5,0.85368246]
[1732050594234,3.23701,3089.3,3088.6,0.1619737]
[1732050594429,3.23701,3089.3,3088.5,0.85368246]
[1732050594430,3.23739,3089.0,3088.4,0.7212]
[1732050594605,3.23734,3089.0,3088.4,0.7212]
[1732050595112,3.23757,3088.8,3088.4,0.7212]
[1732050595314,3.23779,3088.6,3088.4,0.7212]
[1732050595516,3.23718,3089.1,3088.4,0.7212]
[1732050595517,3.23769,3088.7,3088.4,0.7212]